bitfinex/quotes_BTCUSD_20220211
["timestamp","ask_amount","ask_price","bid_price","bid_amount"]
[1644550793836,0.208233,43244.0,43241.0,0.057849]
[1644550794034,0.20769922,43246.0,43241.0,0.057849]
[1644550794234,0.2086385,43245.0,43241.0,0.057849]
[1644550794435,0.0004055,43245.0,43242.0,0.057847]
[1644550795034,0.001,43247.0,43242.0,0.057847]
[1644550795234,0.208233,43246.0,43242.0,0.057847]
[1644550795438,0.0004055,43246.0,43242.0,0.057847]
[1644550795935,0.0004055,43246.0,43243.0,0.057844]
[1644550796335,0.001,43247.0,43243.0,0.057844]
[1644550796535,0.00158638,43247.0,43243.0,0.057844]
[1644550796984,0.208233,43245.0,43243.0,0.057844]
[1644550797383,0.00158638,43247.0,43243.0,0.057844]
[1644550797585,0.001,43247.0,43243.0,0.057844]
[1644550797785,0.00058638,43246.0,43243.0,0.057844]
[1644550798185,0.00058638,43246.0,43245.0,0.38234681]
[1644550798384,0.20881938,43246.0,43245.0,0.38234681]
[1644550798786,0.208233,43246.0,43245.0,0.38234681]
[1644550801133,0.46196315,43246.0,43245.0,0.38234681]
[1644550801939,0.208233,43246.0,43245.0,0.38234681]
[1644550802341,0.001,43247.0,43245.0,0.38234681]
[1644550802538,0.208233,43246.0,43245.0,0.38234681]
[1644550802739,0.001,43247.0,43245.0,0.38234681]
[1644550803741,0.001,43247.0,43245.0,0.43234681]
[1644550804190,0.001,43247.0,43245.0,0.75719881]
[1644550806086,0.001,43247.0,43245.0,0.81503561]
[1644550806687,0.001,43247.0,43245.0,0.83575429]
[1644550806989,0.00061329,43247.0,43245.0,0.83575429]
[1644550808737,0.00061329,43247.0,43245.0,0.85391588]
[1644550808938,0.00061329,43247.0,43245.0,0.8331972]
[1644550810742,0.00061329,43247.0,43245.0,0.85466013]
[1644550810942,0.00061329,43247.0,43245.0,0.83649854]
[1644550812188,3.29e-06,43247.0,43246.0,0.055]
[1644550812386,0.00061506,43248.0,43247.0,0.115649]
[1644550812586,0.00061506,43248.0,43247.0,0.49832454]
[1644550812786,0.00061506,43248.0,43247.0,0.59832454]
[1644550812986,0.00061506,43248.0,43247.0,0.74832454]
[1644550813186,0.001,43252.0,43247.0,0.59832454]
[1644550813386,0.001,43252.0,43250.0,0.005]
[1644550813588,0.001,43252.0,43251.0,0.324852]
[1644550813887,0.001,43252.0,43251.0,0.424852]
[1644550814288,0.02,43264.0,43253.0,0.15]
[1644550814488,0.001,43270.0,43260.0,0.005]
[1644550814689,0.001,43270.0,43265.0,0.35]
[1644550814890,0.001,43274.0,43268.0,0.005]
[1644550815087,0.001,43274.0,43269.0,0.324852]
[1644550815439,0.001,43274.0,43271.0,0.324852]
[1644550815737,0.001,43274.0,43273.0,0.324852]
[1644550815939,0.001,43274.0,43272.0,0.057798]
[1644550816139,0.045,43273.0,43272.0,0.057798]
[1644550816340,0.209233,43274.0,43272.0,0.057798]
[1644550816341,0.00144875,43274.0,43272.0,0.057798]
[1644550816736,0.00144875,43274.0,43273.0,0.324852]
[1644550816938,0.001,43274.0,43273.0,0.324852]
[1644550822585,0.00091435,43274.0,43273.0,0.324852]
[1644550823735,0.00091435,43274.0,43273.0,0.64037402]
[1644550824739,0.00091435,43274.0,43273.0,0.75960904]
[1644550824938,0.001,43279.0,43274.0,0.95]
[1644550825138,0.00329941,43286.0,43277.0,0.382638]
[1644550825338,0.00329941,43286.0,43277.0,0.540423]
[1644550825538,0.00329941,43286.0,43278.0,0.324852]
[1644550825539,0.001,43286.0,43278.0,0.324852]
[1644550825737,0.001,43286.0,43278.0,0.374852]
[1644550825936,0.001,43286.0,43279.0,0.63294245]
[1644550826338,0.001,43286.0,43279.0,0.68294245]
[1644550826339,0.046,43283.0,43279.0,0.68294245]
[1644550826786,0.046,43283.0,43279.0,0.70217747]
[1644550826787,0.001,43283.0,43279.0,0.70217747]
[1644550826986,0.00140552,43282.0,43279.0,0.70217747]
[1644550827791,0.001,43283.0,43281.0,0.95]
[1644550827991,0.001,43286.0,43284.0,0.057779]
[1644550828189,0.001,43287.0,43285.0,0.324852]
[1644550828389,0.001,43287.0,43285.0,0.374852]
[1644550828588,0.001,43287.0,43284.0,0.26555038]
[1644550828589,0.001,43287.0,43286.0,0.324852]
[1644550828792,0.001,43287.0,43286.0,0.6439191]
[1644550828989,0.25108763,43287.0,43286.0,0.6939191]
[1644550829192,0.001,43287.0,43286.0,0.6939191]
[1644550831039,0.001,43287.0,43286.0,0.7439191]
[1644550831438,0.00841072,43289.0,43287.0,0.115562]
[1644550831639,0.008,43289.0,43288.0,0.324852]
[1644550831842,0.008,43289.0,43288.0,0.424852]
[1644550832046,0.008,43289.0,43288.0,0.74410494]
[1644550832047,0.00041072,43289.0,43288.0,0.74410494]
[1644550832239,0.00041072,43289.0,43288.0,0.84410494]
[1644550832842,0.001,43290.0,43288.0,0.86333996]
[1644550833042,0.001,43290.0,43289.0,0.62773357]
[1644550833241,0.001,43290.0,43289.0,0.324852]
[1644550833542,0.046,43290.0,43289.0,0.324852]
[1644550833745,0.096,43290.0,43288.0,0.01923502]
[1644550833941,0.208233,43289.0,43288.0,0.01923502]
[1644550834205,0.046,43290.0,43288.0,0.34408702]
[1644550834594,0.046,43290.0,43288.0,0.01923502]
[1644550834595,0.208233,43289.0,43288.0,0.01923502]
[1644550834793,0.304533,43289.0,43288.0,0.03847004]
[1644550834992,0.304533,43289.0,43288.0,0.01923502]
[1644550834993,0.254533,43289.0,43288.0,0.01923502]
[1644550835194,0.0463,43289.0,43285.0,0.42]
[1644550835494,0.045,43287.0,43285.0,0.42]
[1644550835694,0.045,43287.0,43286.0,0.324852]
[1644550836094,0.025,43287.0,43286.0,0.324852]
[1644550836893,0.025,43287.0,43286.0,0.374852]
[1644550837297,0.1,43309.0,43288.0,1.36230966]
[1644550837497,0.002,43318.0,43302.0,0.05]
[1644550837796,0.002,43318.0,43307.0,0.324852]
[1644550838037,0.002,43318.0,43307.0,0.374852]
[1644550838237,0.002,43318.0,43309.0,0.057755]
[1644550838238,0.34725067,43312.0,43309.0,0.057755]
[1644550838438,0.34725067,43312.0,43310.0,0.115504]
[1644550838638,0.34725067,43312.0,43306.0,0.13604181]
[1644550838639,0.34725067,43312.0,43306.0,0.02053581]
[1644550838837,0.208233,43311.0,43306.0,0.02053581]
[1644550839840,0.208233,43311.0,43306.0,0.07830381]
[1644550840039,0.208233,43311.0,43307.0,0.05777]
[1644550841540,0.20883374,43311.0,43307.0,0.05777]
[1644550842587,0.208233,43311.0,43307.0,0.05777]
[1644550842887,0.20882896,43311.0,43307.0,0.05777]
[1644550843787,0.208233,43311.0,43307.0,0.05777]
[1644550843988,0.20882896,43311.0,43307.0,0.11553025]
[1644550844186,0.00059596,43311.0,43307.0,0.11553025]
[1644550844387,0.208233,43310.0,43308.0,0.11552]
[1644550844588,0.00116262,43310.0,43308.0,0.11552]
[1644550845188,0.00116262,43310.0,43309.0,0.324852]
[1644550845441,0.00116262,43310.0,43308.0,0.173279]
[1644550845941,0.00116262,43310.0,43308.0,0.288799]
[1644550846346,0.00058442,43311.0,43310.0,1.35]
[1644550846545,0.00058442,43311.0,43310.0,1.732602]
[1644550846745,0.00058442,43311.0,43310.0,1.06154243]
[1644550847246,0.00058442,43311.0,43310.0,1.36191392]
[1644550847445,0.002,43318.0,43312.0,0.17323944]
[1644550847642,0.002,43318.0,43317.0,0.32466131]
[1644550847843,0.002,43318.0,43317.0,0.324852]
[1644550848442,0.002,43318.0,43315.0,0.057747]
[1644550848643,0.002,43318.0,43316.0,0.374852]
[1644550848843,0.002,43318.0,43317.0,0.02053581]
[1644550849043,0.002,43318.0,43317.0,0.34538781]
[1644550849895,0.001,43324.0,43319.0,0.115496]
[1644550850096,0.00058608,43320.0,43319.0,0.3826]
[1644550850300,0.00058608,43320.0,43319.0,0.84551206]
[1644550850497,0.01,43329.0,43319.0,0.84551206]
[1644550850498,0.00050132,43335.0,43321.0,0.95]
[1644550850702,0.02002413,43344.0,43331.0,0.05]
[1644550850703,0.0007002,43336.0,43331.0,0.05]
[1644550850896,0.0007002,43336.0,43332.0,0.324852]
[1644550851197,0.0007002,43336.0,43334.0,0.324852]
[1644550851597,0.0007002,43336.0,43327.0,0.057737]
[1644550851895,0.0007002,43336.0,43319.0,0.07053581]
[1644550851896,0.0007002,43336.0,43319.0,0.02053581]
[1644550852095,0.29923977,43326.0,43321.0,0.05]
[1644550852298,0.29923977,43326.0,43320.0,0.05]
[1644550852495,0.29923977,43326.0,43321.0,0.324852]
[1644550852698,0.22947495,43330.0,43320.0,0.05]
[1644550852939,0.208233,43329.0,43322.0,0.057745]
[1644550853340,0.208233,43334.0,43322.0,0.057745]
[1644550853539,0.30516906,43333.0,43323.0,0.00058386]
[1644550853739,0.31139944,43327.0,43323.0,0.00058386]
[1644550854139,0.31139944,43327.0,43324.0,0.324852]
[1644550854338,0.00061828,43328.0,43324.0,0.324852]
[1644550854542,0.00061828,43328.0,43324.0,0.690319]
[1644550854739,0.00100264,43335.0,43325.0,0.324852]
[1644550854938,0.00044347,43328.0,43325.0,0.424852]
[1644550855541,0.00044347,43328.0,43326.0,0.115455]
[1644550855740,0.00100264,43335.0,43327.0,0.424852]
[1644550855941,0.00100264,43335.0,43327.0,0.524852]
[1644550856140,0.00100264,43335.0,43328.0,0.324852]
[1644550856340,0.00100264,43335.0,43328.0,0.424852]
[1644550856540,0.00044348,43329.0,43328.0,0.424852]
[1644550856990,0.00044348,43329.0,43328.0,0.34538781]
[1644550857194,0.36762544,43331.0,43330.0,0.324852]
[1644550857390,0.36824404,43331.0,43330.0,0.324852]
[1644550857590,0.36824404,43331.0,43330.0,0.424852]
[1644550858290,0.36762544,43331.0,43330.0,0.424852]
[1644550858492,0.6149761,43331.0,43330.0,0.324852]
[1644550858690,0.6149761,43331.0,43328.0,0.02053581]
[1644550858691,0.8232091,43331.0,43328.0,0.02053581]
[1644550858891,0.6149761,43331.0,43330.0,0.02053581]
[1644550859089,0.61229744,43331.0,43330.0,0.02053581]
[1644550859490,0.36494678,43331.0,43330.0,0.02053581]
[1644550859690,0.00100264,43335.0,43330.0,0.34538781]
[1644550859893,0.00057891,43333.0,43330.0,0.40312381]
[1644550860091,0.00057891,43333.0,43331.0,0.324852]
[1644550860293,0.00047891,43333.0,43331.0,0.324852]
[1644550860737,0.00100264,43335.0,43331.0,0.324852]
[1644550860943,0.40309905,43333.0,43331.0,0.34538781]
[1644550861140,0.40309905,43333.0,43331.0,0.02053581]
[1644550861342,0.208233,43332.0,43331.0,0.02053581]
[1644550861939,0.00100264,43335.0,43331.0,0.34538781]
[1644550862339,0.0005758,43334.0,43331.0,0.34538781]
[1644550862538,0.0005758,43334.0,43331.0,0.39538781]
[1644550862738,0.0005758,43334.0,43333.0,0.39712635]
[1644550862938,0.0005758,43334.0,43333.0,0.72197835]
[1644550863339,0.00100264,43335.0,43333.0,0.324852]
[1644550863539,0.00100264,43335.0,43331.0,0.07826081]
[1644550863740,0.00100264,43335.0,43332.0,0.324852]
[1644550863939,0.00100264,43335.0,43332.0,0.382575]
[1644550864194,0.00100264,43335.0,43333.0,0.324852]
[1644550864389,0.00100264,43335.0,43333.0,0.62194645]
[1644550864793,0.00100264,43335.0,43333.0,0.72967037]
[1644550864988,0.00100264,43335.0,43334.0,0.324852]
[1644550866391,0.00100264,43335.0,43334.0,0.62523731]
[1644550866890,0.00100264,43335.0,43334.0,0.69577312]
[1644550867490,0.00100264,43335.0,43334.0,0.39538781]
[1644550868345,0.00100264,43335.0,43334.0,0.45311081]
[1644550868943,0.00100264,43335.0,43334.0,0.47364662]
[1644550869143,0.00100264,43335.0,43334.0,0.45311081]
[1644550870144,0.00100264,43335.0,43334.0,0.74542297]
[1644550870444,0.00100264,43335.0,43334.0,0.74715327]
[1644550870645,0.00100264,43335.0,43334.0,0.45311081]
[1644550871046,0.00100264,43335.0,43334.0,0.47364662]
[1644550871245,0.00100264,43335.0,43334.0,0.75884238]
[1644550872290,0.00100264,43335.0,43334.0,0.45311081]
[1644550872590,0.00100264,43335.0,43334.0,0.39538781]
[1644550872990,0.00100264,43335.0,43334.0,0.47364262]
[1644550873193,0.00100264,43335.0,43334.0,0.74761951]
[1644550873992,0.00100264,43335.0,43334.0,0.84761951]
[1644550874193,0.00100264,43335.0,43334.0,0.45310681]
[1644550874794,0.00100264,43335.0,43334.0,0.55310681]
[1644550875642,0.00100264,43335.0,43334.0,0.57364262]
[1644550875943,0.00100264,43335.0,43334.0,0.55310681]
[1644550876949,0.00100264,43335.0,43334.0,0.57364262]
[1644550877146,0.00100264,43335.0,43334.0,0.55310681]
[1644550878553,0.00100264,43335.0,43334.0,0.40310681]
[1644550878750,0.00100264,43335.0,43334.0,0.44538781]
[1644550878948,0.00100264,43335.0,43334.0,0.34538781]
[1644550879201,0.00100264,43335.0,43334.0,0.42364262]
[1644550879397,0.00100264,43335.0,43334.0,0.36592362]
[1644550879796,0.00100264,43335.0,43334.0,0.324852]
[1644550880599,0.00100264,43335.0,43334.0,0.474852]
[1644550880800,0.00100264,43335.0,43334.0,0.424852]
[1644550881000,0.00100264,43335.0,43334.0,0.44538781]
[1644550882203,0.27422543,43341.0,43334.0,0.44538781]
[1644550882204,0.31763466,43341.0,43334.0,0.44538781]
[1644550882401,0.208233,43340.0,43334.0,0.02053581]
[1644550882600,0.35175088,43339.0,43334.0,0.02053581]
[1644550882802,0.208233,43338.0,43334.0,0.02053581]
[1644550883041,0.0463,43337.0,43334.0,0.04107162]
[1644550883241,0.208233,43336.0,43334.0,0.02053581]
[1644550883441,0.31061938,43336.0,43334.0,0.07826481]
[1644550883844,0.31061938,43336.0,43335.0,0.057731]
[1644550884642,0.31061938,43336.0,43334.0,0.07826481]
[1644550884843,0.31061938,43336.0,43334.0,0.02053581]
[1644550885143,0.2020857,43335.0,43334.0,0.02053581]
[1644550885343,0.4779777,43335.0,43329.0,0.115463]
[1644550885542,0.2757627,43335.0,43329.0,0.165463]
[1644550885744,0.2757627,43335.0,43329.0,0.223201]
[1644550885943,0.202215,43334.0,43329.0,0.223201]
[1644550886144,0.2757627,43335.0,43329.0,0.223201]
[1644550886346,0.202215,43334.0,43329.0,0.165463]
[1644550886545,0.63230646,43336.0,43329.0,0.165463]
[1644550886799,0.63230646,43336.0,43330.0,0.057737]
[1644550886800,0.31061938,43336.0,43330.0,0.057737]
[1644550886996,0.36835638,43336.0,43331.0,0.057737]
[1644550887198,0.202215,43335.0,43331.0,0.057737]
[1644550887597,0.202215,43335.0,43329.0,0.06553581]
[1644550887799,0.36748599,43334.0,43329.0,0.02053581]
[1644550887997,0.202215,43333.0,43329.0,0.02053581]
[1644550888599,0.0463,43332.0,43329.0,0.02053581]
[1644550888799,0.202215,43331.0,43329.0,0.02053581]
[1644550889000,0.0463,43330.0,43329.0,0.04107162]
[1644550889198,0.248515,43330.0,43329.0,0.02053581]
[1644550889397,0.0463,43330.0,43329.0,0.02053581]
[1644550889799,0.0463,43330.0,43329.0,0.34455081]
[1644550891042,0.0463,43330.0,43329.0,0.36508662]
[1644550891251,0.0463,43330.0,43329.0,0.02053581]
[1644550891446,0.598515,43330.0,43329.0,0.02053581]
[1644550891647,0.248515,43330.0,43329.0,0.02053581]
[1644550892144,0.64834577,43330.0,43329.0,0.02053581]
[1644550892847,0.248515,43330.0,43329.0,0.02053581]
[1644550893643,0.248515,43330.0,43329.0,0.04107162]
[1644550894494,0.248515,43330.0,43327.0,0.00048576]
[1644550894696,0.202215,43329.0,43327.0,0.00048576]
[1644550894897,0.202215,43329.0,43328.0,0.115466]
[1644550895096,0.0463,43329.0,43328.0,0.115466]
[1644550895695,0.248515,43329.0,43328.0,0.115466]
[1644550895898,0.0463,43329.0,43328.0,0.115466]
[1644550896299,0.248515,43329.0,43328.0,0.115466]
[1644550897097,0.0463,43329.0,43328.0,0.18600181]
[1644550897299,0.0463,43329.0,43328.0,0.51001681]
[1644550897499,0.202215,43333.0,43330.0,0.057731]
[1644550897699,0.05383669,43335.0,43330.0,0.057731]
[1644550898148,0.248515,43334.0,43331.0,0.05773]
[1644550898548,0.52673422,43334.0,43328.0,0.02103118]
[1644550898750,0.28544902,43330.0,43328.0,0.02103118]
[1644550899047,0.71041784,43334.0,43328.0,0.07103118]
[1644550899249,0.202215,43333.0,43331.0,0.02053581]
[1644550899450,0.202215,43333.0,43331.0,0.07826981]
[1644550900149,0.48724873,43333.0,43331.0,0.07826981]
[1644550901248,0.48724873,43333.0,43331.0,0.09880562]
[1644550901449,0.48724873,43333.0,43331.0,0.057734]
[1644550902698,0.81324735,43333.0,43329.0,0.05774]
[1644550903099,0.48724873,43333.0,43329.0,0.05774]
[1644550903498,0.28503373,43333.0,43329.0,0.05774]
[1644550903700,0.28503373,43333.0,43331.0,0.02053581]
[1644550903901,0.28503373,43333.0,43331.0,0.07827081]
[1644550904099,0.48724873,43333.0,43331.0,0.07827081]
[1644550904299,0.48724873,43333.0,43331.0,0.02053581]
[1644550904702,0.48724873,43333.0,43331.0,0.01053581]
[1644550905748,0.48724873,43333.0,43331.0,0.02107162]
[1644550906047,0.48724873,43333.0,43331.0,0.01053581]
[1644550906048,0.202215,43333.0,43331.0,0.01053581]
[1644550906249,0.05383669,43335.0,43331.0,0.06826581]
[1644550906648,0.05383669,43335.0,43332.0,0.324015]
[1644550906847,0.05383669,43335.0,43331.0,0.48826581]
[1644550907147,0.05383669,43335.0,43332.0,0.324015]
[1644550907351,0.05383669,43335.0,43334.0,0.324015]
[1644550908150,0.05383669,43335.0,43333.0,0.057727]
[1644550908349,0.05383669,43335.0,43334.0,0.324015]
[1644550908548,0.05383669,43335.0,43334.0,0.05772643]
[1644550908749,0.05383669,43335.0,43333.0,0.057727]
[1644550908949,0.05383669,43335.0,43334.0,0.324015]
[1644550909793,0.25605169,43335.0,43334.0,0.01053581]
[1644550911198,0.25605169,43335.0,43334.0,0.02107162]
[1644550911397,0.25605169,43335.0,43334.0,0.01053581]
[1644550911597,0.05383669,43335.0,43334.0,0.33455081]
[1644550911798,0.25605169,43335.0,43334.0,0.01053581]
[1644550913351,0.25605169,43335.0,43334.0,0.02107162]
[1644550913551,0.25605169,43335.0,43334.0,0.01053581]
[1644550915163,0.30235169,43335.0,43334.0,0.01053581]
[1644550915356,0.40235169,43335.0,43334.0,0.02107162]
[1644550915553,0.40235169,43335.0,43334.0,0.01053581]
[1644550915554,0.60235169,43335.0,43334.0,0.01053581]
[1644550915956,0.66009518,43335.0,43334.0,0.01053581]
[1644550916154,0.60235169,43335.0,43334.0,0.01053581]
[1644550916798,0.71210354,43335.0,43334.0,0.01053581]
[1644550916997,0.76984629,43335.0,43334.0,0.01053581]
[1644550917199,0.76984629,43335.0,43334.0,0.02031959]
[1644550917396,1.0959148,43335.0,43334.0,0.01053581]
[1644550918800,1.03817205,43335.0,43334.0,0.01053581]
[1644550919200,1.03817205,43335.0,43334.0,0.02031959]
[1644550919399,1.03817205,43335.0,43334.0,0.00978378]
[1644550920002,1.09591629,43335.0,43334.0,0.00978378]
[1644550920204,1.03817205,43335.0,43334.0,0.00978378]
[1644550920454,0.83817205,43335.0,43334.0,0.00978378]
[1644550921253,1.09591519,43335.0,43334.0,0.00978378]
[1644550921851,1.09591519,43335.0,43334.0,0.01956756]
[1644550922052,0.56984668,43335.0,43334.0,0.00978378]
[1644550922252,0.51210354,43335.0,43334.0,0.00978378]
[1644550922453,0.71210354,43335.0,43334.0,0.00978378]
[1644550922654,0.51210354,43335.0,43334.0,0.00978378]
[1644550923056,0.40235169,43335.0,43334.0,0.00978378]
[1644550923253,0.75235169,43335.0,43334.0,0.01956756]
[1644550923456,0.75235169,43335.0,43334.0,0.00978378]
[1644550923754,0.56984789,43335.0,43334.0,0.00978378]
[1644550923954,0.81009604,43335.0,43334.0,0.00978378]
[1644550924200,0.91984789,43335.0,43334.0,0.00978378]
[1644550925398,0.91984789,43335.0,43334.0,0.01956756]
[1644550925607,0.91984789,43335.0,43334.0,0.00978378]
[1644550927303,0.81009604,43335.0,43334.0,0.01956756]
[1644550927503,0.91984789,43335.0,43334.0,0.00978378]
[1644550927704,0.81009604,43335.0,43334.0,0.00978378]
[1644550929355,0.81009604,43335.0,43334.0,0.01956756]
[1644550929553,0.81009604,43335.0,43334.0,0.00978378]
[1644550929554,0.92559421,43335.0,43334.0,0.00978378]
[1644550929955,1.03534606,43335.0,43334.0,0.00978378]
[1644550930355,0.95,43334.0,43323.0,0.05775]
[1644550930562,0.11551129,43329.0,43320.0,0.0001]
[1644550930762,0.057756,43327.0,43320.0,0.0001]
[1644550930957,0.248515,43326.0,43320.0,0.0001]
[1644550931355,0.31740519,43325.0,43322.0,0.00057855]
[1644550931557,0.24509754,43323.0,43322.0,0.00057855]
[1644550931801,0.60912782,43323.0,43322.0,0.00057855]
[1644550932302,0.60912782,43323.0,43320.0,0.0001]
[1644550932499,0.202215,43322.0,43320.0,0.00067856]
[1644550932702,0.32516942,43321.0,43320.0,0.00067856]
[1644550932900,0.52738442,43321.0,43320.0,0.00067856]
[1644550933100,0.58513942,43321.0,43320.0,0.00067856]
[1644550933802,0.58513942,43321.0,43320.0,0.0001]
[1644550937954,0.202215,43320.0,43319.0,0.3701]
[1644550938253,0.52597189,43320.0,43319.0,0.3701]
[1644550943950,0.52597189,43320.0,43319.0,0.3651]
[1644550945951,0.24859456,43320.0,43319.0,0.3651]
[1644550947198,0.52468293,43320.0,43319.0,0.3651]
[1644550950549,0.49468293,43320.0,43319.0,0.3651]
[1644550951551,0.21859456,43320.0,43319.0,0.3651]
[1644550953155,0.17229456,43320.0,43319.0,0.3651]
[1644550954503,0.17229456,43320.0,43319.0,0.4651]
[1644550954504,7.956e-05,43320.0,43319.0,0.4651]
[1644550954702,7.956e-05,43320.0,43319.0,0.789209]
[1644550955502,7.956e-05,43320.0,43319.0,0.8675788]
[1644550957302,7.956e-05,43320.0,43319.0,0.9175788]
[1644550957503,7.956e-05,43320.0,43319.0,0.93728181]
[1644550957706,7.956e-05,43320.0,43319.0,0.91665401]
[1644550959555,7.956e-05,43320.0,43319.0,0.93622223]
[1644550959751,7.956e-05,43320.0,43319.0,0.91651922]
[1644550961452,7.956e-05,43320.0,43319.0,1.23056137]
[1644550961703,7.956e-05,43320.0,43319.0,0.91835569]
[1644550963498,7.956e-05,43320.0,43319.0,0.9388733]
[1644550963699,7.956e-05,43320.0,43319.0,0.91746861]
[1644550965199,7.956e-05,43320.0,43319.0,1.20590549]
[1644550965449,7.956e-05,43320.0,43319.0,1.2238586]
[1644550965650,7.956e-05,43320.0,43319.0,1.20334099]
[1644550966053,7.956e-05,43320.0,43319.0,0.91653031]
[1644550967652,7.956e-05,43320.0,43319.0,0.91611718]
[1644550969604,7.956e-05,43320.0,43319.0,0.93495867]
[1644550969807,7.956e-05,43320.0,43319.0,0.91579249]
[1644550971605,7.956e-05,43320.0,43319.0,0.93583659]
[1644550972106,7.956e-05,43320.0,43319.0,0.896951]
[1644550972952,7.956e-05,43320.0,43319.0,0.8968364]
[1644550973554,7.956e-05,43320.0,43319.0,1.20688436]
[1644550974154,7.956e-05,43320.0,43319.0,0.91650673]
[1644550974356,7.956e-05,43320.0,43319.0,1.22278091]
[1644550974755,0.05378171,43322.0,43319.0,1.22278091]
[1644550974756,0.05378171,43322.0,43320.0,1.007728]
[1644550975057,0.05378171,43322.0,43321.0,0.80542139]
[1644550975255,0.05378171,43322.0,43321.0,0.85542139]
[1644550978202,0.05378171,43322.0,43321.0,0.87548111]
[1644550978804,0.03424474,43327.0,43322.0,0.95]
[1644550979004,0.12952096,43339.0,43336.0,0.07854707]
[1644550979204,0.172201,43338.0,43336.0,0.07854707]
[1644550979603,0.172201,43340.0,43336.0,0.12854707]
[1644550979803,0.00054782,43339.0,43336.0,0.12854707]
[1644550980003,0.00054782,43339.0,43336.0,0.05]
[1644550980207,0.00054782,43339.0,43337.0,0.057722]
[1644550980454,0.30073064,43341.0,43338.0,0.324109]
[1644550980654,0.000909,43341.0,43337.0,0.057722]
[1644550980854,0.00054791,43340.0,43338.0,0.324109]
[1644550981255,0.00054791,43340.0,43339.0,0.324109]
[1644550981758,0.000909,43341.0,43339.0,0.43182406]
[1644550981958,0.000909,43341.0,43340.0,0.05]
[1644550985608,0.000909,43341.0,43340.0,0.373975]
[1644550985806,0.000909,43341.0,43340.0,0.05]
[1644550986005,0.27313,43341.0,43340.0,0.05]
[1644550986606,0.27313,43341.0,43339.0,0.057716]
[1644550987007,0.49029411,43341.0,43339.0,0.057716]
[1644550987206,0.34254508,43340.0,43339.0,0.057716]
[1644550987405,0.61476608,43340.0,43339.0,0.057716]
[1644550987605,0.83229669,43340.0,43339.0,0.057716]
[1644550988065,0.05795407,43342.0,43341.0,0.323982]
[1644550988066,0.04683891,43342.0,43341.0,0.323982]
[1644550988259,0.04683891,43342.0,43341.0,0.423982]
[1644550988260,0.0005479,43342.0,43341.0,0.423982]
[1644550988458,0.00027926,43347.0,43343.0,0.057696]
[1644550988760,0.00027926,43347.0,43346.0,0.5012267]
[1644550988959,0.00027926,43347.0,43346.0,0.79532899]
[1644550989157,0.00027926,43347.0,43346.0,0.84532899]
[1644550989363,0.00027926,43347.0,43346.0,0.90302999]
[1644550989558,0.00027926,43347.0,43346.0,0.94932999]
[1644550991360,0.00027926,43347.0,43346.0,0.87208529]
[1644550991904,0.00027926,43347.0,43346.0,0.577983]
[1644550992303,0.00027926,43347.0,43346.0,0.59925802]
[1644550992604,0.00027926,43347.0,43346.0,0.88831777]
[1644550992807,0.00027926,43347.0,43346.0,0.95759775]
[1644550993007,0.00027926,43347.0,43346.0,0.668538]
[1644550993810,0.00027926,43347.0,43346.0,0.98440729]
[1644550994108,0.00118026,43349.0,43348.0,0.554752]
[1644550994307,0.00118026,43349.0,43348.0,0.654752]
[1644550994907,0.00055852,43349.0,43348.0,0.654752]
[1644550996354,0.003,43355.0,43348.0,1.26840268]
[1644550996355,0.002001,43355.0,43348.0,1.26840268]
[1644550996559,0.00248656,43357.0,43355.0,1.331672]
[1644550996757,0.00248656,43357.0,43356.0,0.323982]
[1644550997356,0.00019896,43361.0,43356.0,0.71855129]
[1644550997556,0.00019896,43361.0,43357.0,0.173055]
[1644550997857,0.00019896,43361.0,43360.0,0.373982]
[1644550998657,0.00019896,43361.0,43360.0,0.431666]
[1644550999512,0.21795305,43372.0,43360.0,0.431666]
[1644550999513,0.00064448,43373.0,43364.0,0.05768]
[1644550999709,0.00064448,43373.0,43372.0,0.05]
[1644550999907,0.00064448,43373.0,43372.0,0.373982]
[1644551000105,0.00064448,43373.0,43372.0,0.423982]
[1644551000304,0.00064448,43373.0,43372.0,0.473982]
[1644551000708,0.00064448,43373.0,43372.0,0.531642]
[1644551001106,0.00079584,43377.0,43374.0,0.323982]
[1644551001308,0.11049,43381.0,43374.0,0.323982]
[1644551001309,0.11026513,43381.0,43377.0,0.95]
[1644551001510,0.001,43385.0,43376.0,0.05]
[1644551001511,0.001,43385.0,43380.0,0.373982]
[1644551001706,0.001,43385.0,43382.0,0.323982]
[1644551001906,0.001,43385.0,43381.0,0.172962]
[1644551002309,0.33786353,43384.0,43381.0,0.172962]
[1644551002504,0.0205721,43386.0,43381.0,0.172962]
[1644551002705,0.0205721,43386.0,43383.0,0.323982]
[1644551003459,0.0205721,43386.0,43381.0,0.172962]
[1644551003660,0.0205721,43386.0,43367.0,0.230643]
[1644551003661,0.27553588,43382.0,43378.0,0.115332]
[1644551003957,0.27553588,43382.0,43372.0,0.115343]
[1644551004157,0.27553588,43382.0,43366.0,0.05]
[1644551004356,0.27553588,43382.0,43366.0,0.057676]
[1644551004559,0.30618175,43377.0,43367.0,0.05]
[1644551004757,0.30618175,43377.0,43369.0,0.323982]
[1644551005158,0.30618175,43377.0,43368.0,0.115353]
[1644551005559,0.31112102,43371.0,43368.0,0.115353]
[1644551005759,0.31112102,43371.0,43369.0,0.323982]
[1644551005961,0.31112102,43371.0,43368.0,0.115353]
[1644551006359,0.31112102,43371.0,43369.0,0.05]
[1644551007002,0.30621597,43376.0,43369.0,0.05]
[1644551007209,0.30621597,43376.0,43370.0,0.057681]
[1644551007601,0.30621597,43376.0,43371.0,0.057679]
[1644551008002,0.27639138,43375.0,43371.0,0.057679]
[1644551008607,0.27639138,43375.0,43371.0,0.05828759]
[1644551009603,0.27639138,43375.0,43371.0,0.057679]
[1644551009803,0.27639138,43375.0,43371.0,0.07942872]
[1644551010203,0.27589138,43375.0,43371.0,0.07942872]
[1644551010860,0.27589138,43375.0,43371.0,0.07882013]
[1644551011060,0.27589138,43375.0,43371.0,0.07942872]
[1644551011265,0.0463,43377.0,43371.0,0.07942872]
[1644551011563,0.32742409,43381.0,43373.0,0.115344]
[1644551011763,0.42742409,43381.0,43373.0,0.115344]
[1644551012162,0.26420031,43379.0,43375.0,0.00060853]
[1644551013164,0.26420031,43379.0,43373.0,0.115344]
[1644551013363,0.26420031,43379.0,43375.0,0.00060853]